bitfinex-derivatives/quotes_SOLF0:USTF0_20250329
["timestamp","ask_amount","ask_price","bid_price","bid_amount"]
[1743231212088,7.8726,127.07,127.06,27.89957218]
[1743231212782,7.8726,127.07,127.06,0.05957218]
[1743231214284,17.38875191,127.07,127.06,7.218e-05]
[1743231216886,7.8726,127.07,127.06,7.218e-05]
[1743231226398,22.77825871,127.07,127.06,7.218e-05]
[1743231226697,7.8748,127.04,127.02,27.86]
[1743231227001,7.8748,127.04,127.0,27.86]
[1743231227296,7.874,127.05,127.0,27.86]
[1743231227602,7.874,127.05,127.01,7.876]
[1743231227800,0.05157582,127.04,127.01,7.9341866]
[1743231228200,0.05157582,127.04,127.02,7.8756]
[1743231228701,0.05157582,127.04,127.01,0.0581866]
[1743231228894,7.92607582,127.04,127.01,7.9342866]
[1743231229095,7.92607582,127.04,127.01,0.0581866]
[1743231230702,7.92607582,127.04,127.01,7.9344866]
[1743231231998,7.8752,127.03,127.01,0.0581866]
[1743231235091,0.05157582,127.04,127.01,0.0581866]
[1743231236992,7.8757,127.02,127.01,0.0581866]
[1743231237805,0.05157582,127.04,127.01,0.0581866]
[1743231237806,9.59584176,127.04,127.01,0.0581866]
[1743231238903,17.47064176,127.04,127.01,0.0581866]
[1743231240910,7.92637582,127.04,127.01,0.0581866]
[1743231242110,7.8751,127.03,127.01,0.0581866]
[1743231243904,7.92637582,127.04,127.01,7.9343866]
[1743231244809,7.8751,127.03,127.01,0.0581866]
[1743231246704,0.05157582,127.04,127.01,0.0581866]
[1743231247607,9.54426594,127.03,127.01,0.0581866]
[1743231248804,7.8757,127.02,127.01,0.0581866]
[1743231261216,7.8776,126.99,126.97,2.065]
[1743231261519,7.8776,126.99,126.98,27.86]
[1743231261923,7.8776,126.99,126.96,297.08426594]
[1743231262418,9.54426594,126.97,126.96,0.05852241]
[1743231262916,0.05306195,126.99,126.96,0.05852241]
[1743231263825,7.8783,126.98,126.96,0.05852241]
[1743231264319,7.8788,126.97,126.96,0.05852241]
[1743231267524,17.42306594,126.97,126.96,0.05852241]
[1743231268518,7.8814,126.93,126.9,273.43636594]
[1743231268825,9.54426594,126.93,126.9,261.8474]
[1743231269128,17.42576594,126.93,126.9,27.86]
[1743231269827,7.8821,126.92,126.9,27.91334414]
[1743231271530,9.59802848,126.93,126.9,27.91334414]
[1743231271824,9.59802848,126.93,126.9,0.05334414]
[1743231272225,7.8824,126.92,126.9,0.05334414]
[1743231273224,9.59802848,126.93,126.9,0.05334414]
[1743231273429,9.54426594,126.91,126.9,0.05334414]
[1743231273624,17.42676594,126.91,126.9,0.05334414]
[1743231275522,9.54426594,126.91,126.85,7.8858]
[1743231275724,9.54426594,126.89,126.85,7.8858]
[1743231275924,9.54426594,126.89,126.84,271.50656594]
[1743231276325,9.54426594,126.87,126.84,259.84]
[1743231276628,9.59607866,126.87,126.84,0.05549589]
[1743231276831,7.8857,126.86,126.84,0.05549589]
[1743231278029,9.59607866,126.87,126.84,0.05549589]
[1743231278231,9.54426594,126.85,126.78,302.277114]
[1743231278531,9.54426594,126.85,126.8,9.54426594]
[1743231279233,17.43106594,126.85,126.8,9.54426594]
[1743231279434,0.05792915,126.84,126.81,0.06025581]
[1743231279836,7.94532915,126.84,126.81,0.06025581]
[1743231280033,7.94532915,126.84,126.81,27.94025581]
[1743231280738,7.94532915,126.84,126.81,35.82905581]
[1743231280931,7.94532915,126.84,126.81,27.94025581]
[1743231281230,7.8876,126.83,126.81,27.94025581]
[1743231282639,0.05792915,126.84,126.81,27.94025581]
[1743231282935,9.54426594,126.83,126.81,0.06025581]
[1743231284530,17.43206594,126.83,126.81,0.06025581]
[1743231285238,7.8881,126.82,126.81,0.06025581]
[1743231285438,9.54426594,126.83,126.81,0.06025581]
[1743231286936,17.43206594,126.83,126.81,0.06025581]
[1743231287140,0.05792915,126.84,126.81,0.06025581]
[1743231287638,0.05792915,126.84,126.82,27.9]
[1743231288143,0.05792915,126.84,126.82,35.7877]
[1743231288443,0.05792915,126.84,126.82,27.9]
[1743231289144,0.05792915,126.84,126.82,35.7881]
[1743231292146,7.94482915,126.84,126.82,27.9]
[1743231293642,0.05792915,126.84,126.82,27.9]
[1743231294249,0.05792915,126.84,126.83,7.8875]
[1743231294850,0.05792915,126.84,126.82,35.7878]
[1743231295751,9.54426594,126.89,126.83,9.54426594]
[1743231295943,9.54426594,126.9,126.85,9.54426594]
[1743231296250,7.8837,126.9,126.86,45.32986594]
[1743231296453,7.8837,126.9,126.87,27.9]
[1743231296956,7.94142236,126.9,126.87,27.95790995]
[1743231297757,0.05772236,126.9,126.87,37.50217589]
[1743231298252,0.05772236,126.9,126.87,45.38687589]
[1743231299052,7.94132236,126.9,126.87,37.50217589]
[1743231299252,9.6019883,126.9,126.87,27.95790995]
[1743231299447,9.6019883,126.9,126.86,7.8854]
[1743231299448,9.54426594,126.88,126.81,27.88]
[1743231299651,7.8854,126.87,126.82,17.43226594]
[1743231299849,9.54426594,126.88,126.82,9.54426594]
[1743231300049,9.54426594,126.9,126.84,9.54426594]
[1743231300252,9.54426594,126.9,126.85,27.88]
[1743231300446,9.54426594,126.9,126.86,9.54426594]
[1743231300652,0.05315618,126.89,126.86,9.60151656]
[1743231301347,7.93725618,126.89,126.86,9.60151656]
[1743231303156,7.8846,126.88,126.86,9.60151656]
[1743231303655,7.8846,126.88,126.86,0.05725062]
[1743231305257,7.885,126.87,126.86,0.05725062]
[1743231321586,0.05315618,126.89,126.86,9.60151656]
[1743231321784,0.05315618,126.89,126.88,9.54426594]
[1743231321981,9.54426594,126.93,126.88,37.42426594]
[1743231322187,7.8816,126.93,126.9,9.54426594]
[1743231322374,9.54426594,126.93,126.91,27.88]
[1743231322788,7.8821,126.92,126.91,27.88]
[1743231323085,9.54426594,126.92,126.89,27.88]
[1743231323281,9.54426594,126.91,126.9,0.05346139]
[1743231323482,17.42676594,126.91,126.9,0.05346139]
[1743231326589,0.05573876,126.92,126.9,0.05346139]
[1743231327089,7.93763876,126.92,126.91,27.88]
[1743231327491,7.93763876,126.92,126.9,0.05346139]
[1743231329794,0.05573876,126.92,126.9,9.59772733]
[1743231330393,0.05573876,126.92,126.91,7.8825]
[1743231335392,9.54426594,126.97,126.9,11.69792733]
[1743231335597,9.54426594,126.97,126.92,9.54426594]
[1743231335896,9.54426594,126.97,126.93,27.88]
[1743231336395,100.0,127.0,126.95,9.54426594]
[1743231336596,9.54426594,126.99,126.96,27.88]
[1743231336796,7.8794,126.96,126.95,27.88]
[1743231337996,7.9384013,126.97,126.95,27.88]
[1743231339796,7.8794,126.96,126.95,27.88]
[1743231341904,7.9385013,126.97,126.95,27.88]
[1743231342602,7.8794,126.96,126.95,27.88]
[1743231343805,7.9385013,126.97,126.95,27.88]
[1743231345810,0.0594013,126.97,126.95,37.42426594]
[1743231346004,0.0594013,126.97,126.96,9.54426594]
[1743231346306,0.0594013,126.97,126.96,17.42366594]
[1743231348503,0.0594013,126.97,126.96,9.54426594]
[1743231349005,0.0594013,126.97,126.96,17.42366594]
[1743231355709,0.0594013,126.97,126.96,9.54426594]
[1743231356012,0.0594013,126.97,126.95,9.54426594]
[1743231356210,0.0594013,126.97,126.96,27.86]
[1743231356508,0.0594013,126.97,126.94,27.91631481]
[1743231357013,9.60366724,126.97,126.94,27.91631481]
[1743231357204,7.8794,126.96,126.94,27.91631481]
[1743231357512,0.0594013,126.97,126.94,27.91631481]
[1743231357811,7.9387013,126.97,126.94,27.91631481]
[1743231358109,0.0594013,126.97,126.94,27.91631481]
[1743231358311,7.8795,126.96,126.94,27.91631481]
[1743231358911,7.9385013,126.97,126.94,35.79701481]
[1743231359713,0.0594013,126.97,126.95,7.8799]
[1743231360010,0.0594013,126.97,126.95,17.42416594]
[1743231360714,0.0594013,126.97,126.96,9.54426594]
[1743231361012,0.0594013,126.97,126.94,37.46058075]
[1743231361312,7.9386013,126.97,126.94,45.34118075]
[1743231364709,7.8795,126.96,126.94,45.34118075]
[1743231365017,7.8795,126.96,126.94,37.46058075]
[1743231365207,7.9388013,126.97,126.94,37.46058075]
[1743231365518,0.0594013,126.97,126.94,45.34128075]
[1743231365714,7.8795,126.96,126.94,37.46058075]
[1743231366121,0.0594013,126.97,126.94,45.34118075]
[1743231366417,0.0594013,126.97,126.94,37.46058075]
[1743231366620,0.0594013,126.97,126.96,9.54426594]
[1743231367621,0.0594013,126.97,126.96,17.42366594]
[1743231371323,0.0594013,126.97,126.96,7.8794]
[1743231373930,0.0594013,126.97,126.96,17.42366594]
[1743231374428,0.0594013,126.97,126.96,7.8794]
[1743231374627,9.60366724,126.97,126.94,0.05631481]
[1743231374820,7.8801,126.95,126.94,27.91631481]
[1743231375132,9.60366724,126.97,126.94,0.05631481]
[1743231375521,7.8798,126.96,126.94,0.05631481]
[1743231378534,17.48276724,126.97,126.94,0.05631481]
[1743231378930,17.48276724,126.97,126.94,7.93681481]
[1743231379729,9.60366724,126.97,126.94,7.93681481]
[1743231379930,0.0594013,126.97,126.94,9.60058075]
[1743231380633,0.0594013,126.97,126.95,7.8797]
[1743231380834,0.0594013,126.97,126.96,27.86]
[1743231385038,0.0594013,126.97,126.96,45.28366594]
[1743231395243,100.0,127.0,126.99,7.8776]
[1743231395542,100.0,127.0,126.99,35.7376]
[1743231398545,100.0,127.0,126.99,45.28186594]
[1743231401546,100.0,127.0,126.99,27.86]
[1743231402246,107.877,127.0,126.99,27.86]
[1743231402448,100.0,127.0,126.99,27.86]
[1743231404449,100.0,127.0,126.99,35.7376]
[1743231404644,100.0,127.0,126.99,45.28186594]
[1743231410256,99.88570513,127.0,126.99,45.28186594]
[1743231417250,99.88570513,127.0,126.98,259.83546979]
[1743231417456,99.88570513,127.0,126.98,287.67546979]
[1743231417657,99.88570513,127.0,126.98,297.21973573]
[1743231418256,99.88570513,127.0,126.98,305.09753573]
[1743231418557,99.88570513,127.0,126.98,45.31753573]
[1743231420560,99.88570513,127.0,126.98,37.43973573]
[1743231421563,99.88570513,127.0,126.98,45.31773573]
[1743231421764,99.88570513,127.0,126.98,37.43973573]
[1743231422160,99.88570513,127.0,126.99,7.8776]
[1743231428072,0.05735448,127.01,127.0,7.877]
[1743231428274,0.05735448,127.01,127.0,17.42126594]
[1743231440992,0.05735448,127.01,127.0,45.26126594]
[1743231446296,0.05735448,127.01,126.98,269.35973573]
[1743231446494,9.54426594,127.0,126.98,0.05546979]
[1743231446697,11.64066594,127.0,126.98,0.05546979]
[1743231446898,13.82176594,127.0,126.98,0.05546979]
[1743231447195,13.82176594,127.0,126.95,7.8798]
[1743231447496,13.82176594,127.0,126.94,17.42446594]
[1743231447797,13.82176594,127.0,126.95,27.84]
[1743231447990,9.54426594,126.98,126.93,9.54426594]
[1743231448194,9.54426594,126.97,126.94,27.84]
[1743231448395,9.60259055,126.97,126.94,27.89011476]
[1743231448594,17.48169055,126.97,126.94,35.77071476]
[1743231449600,7.8795,126.96,126.94,27.89011476]
[1743231449794,9.60259055,126.97,126.94,0.05011476]
[1743231450199,7.8794,126.96,126.94,0.05011476]
[1743231453306,17.48169055,126.97,126.94,0.05011476]
[1743231453598,0.05832461,126.97,126.94,0.05011476]
[1743231454604,7.93742461,126.97,126.94,0.05011476]
[1743231454905,7.93742461,126.97,126.94,7.93071476]
[1743231455706,7.8795,126.96,126.94,0.05011476]
[1743231456607,7.93742461,126.97,126.94,7.93081476]
[1743231463814,7.8796,126.96,126.94,0.05011476]
[1743231464013,0.05832461,126.97,126.94,0.05011476]
[1743231464517,7.8801,126.95,126.94,0.05011476]
[1743231464908,11.67366594,126.95,126.88,406.357114]
[1743231465214,7.882,126.92,126.89,35.7434]
[1743231465414,7.882,126.92,126.89,27.86]
[1743231466104,7.9409275,126.92,126.89,27.92002727]
[1743231466307,0.0589275,126.92,126.9,7.8829]
[1743231466815,0.0589275,126.92,126.91,7.8825]
[1743231473723,0.0589275,126.92,126.91,17.42676594]
[1743231475213,9.54426594,126.98,126.95,7.8796]
[1743231475418,9.54426594,126.98,126.95,27.86]
[1743231476313,7.879,126.97,126.95,27.86]
[1743231476518,7.879,126.97,126.95,27.91272488]
[1743231477418,17.47917182,126.98,126.95,35.79272488]
[1743231485815,7.879,126.97,126.95,27.91272488]
[1743231486017,9.54426594,126.96,126.95,0.05272488]
[1743231486321,9.54426594,126.96,126.91,27.86]
[1743231486520,7.8813,126.93,126.91,27.86]
[1743231487322,7.9411724,126.93,126.91,27.90965879]
[1743231487718,7.9411724,126.93,126.91,0.04965879]
[1743231487917,7.8819,126.92,126.91,0.04965879]
[1743231492923,7.8833,126.9,126.88,27.86]
[1743231493425,7.8828,126.91,126.88,27.86]
[1743231493626,7.8828,126.91,126.87,27.86]
[1743231494027,0.05831549,126.9,126.88,9.60417356]
[1743231494328,0.05831549,126.9,126.89,9.54426594]
[1743231494527,0.05831549,126.9,126.89,17.42806594]
[1743231494727,0.05831549,126.9,126.89,7.8838]
[1743231495629,0.05831549,126.9,126.89,17.42806594]
[1743231496628,0.05831549,126.9,126.89,45.28806594]
[1743231503039,0.05831549,126.9,126.89,35.7438]
[1743231509549,0.05831549,126.9,126.89,27.86]
[1743231510346,0.05831549,126.9,126.88,7.94410762]
[1743231510551,0.05831549,126.9,126.88,35.80410762]
[1743231510753,7.94151549,126.9,126.88,7.94410762]
[1743231511045,7.94151549,126.9,126.88,0.05990762]
[1743231511443,0.05831549,126.9,126.88,0.05990762]
[1743231511954,0.05831549,126.9,126.89,7.8838]
[1743231520358,27.86,126.96,126.92,7.8814]
[1743231520359,9.54426594,126.96,126.92,7.8814]
[1743231520553,9.54426594,126.96,126.91,37.40426594]
[1743231520954,53.22752034,126.98,126.91,37.40426594]
[1743231521554,0.0513353,126.96,126.94,7.8803]
[1743231521756,0.0513353,126.96,126.94,27.86]
[1743231525264,0.0513353,126.96,126.94,35.7405]
[1743231526166,0.0513353,126.96,126.95,7.8801]
[1743231528564,0.0513353,126.96,126.95,17.42436594]
[1743231539678,0.0513353,126.96,126.95,9.54426594]
[1743231539874,9.59560124,126.96,126.93,27.89011288]
[1743231540080,9.54426594,126.95,126.93,0.05011288]
[1743231540376,17.42496594,126.94,126.93,0.05011288]
[1743231541472,7.8807,126.94,126.93,0.05011288]
[1743231545072,0.0513353,126.96,126.93,9.59437882]
[1743231545275,0.0513353,126.96,126.94,27.84]
[1743231545880,0.0513353,126.96,126.94,35.7205]
[1743231546780,7.9308353,126.96,126.94,27.84]
[1743231548980,0.0513353,126.96,126.94,35.7206]
[1743231550180,7.9308353,126.96,126.94,27.84]
[1743231550480,0.0513353,126.96,126.94,27.84]
[1743231550881,0.0513353,126.96,126.94,35.7206]
[1743231551380,0.0513353,126.96,126.94,27.84]
[1743231552187,7.9308353,126.96,126.94,27.84]
[1743231555186,0.0513353,126.96,126.94,35.7205]
[1743231556483,7.9308353,126.96,126.94,35.7205]
[1743231556787,7.9308353,126.96,126.94,27.84]
[1743231557688,0.0513353,126.96,126.93,0.05011288]
[1743231557886,9.54426594,126.95,126.93,0.05011288]
[1743231558084,9.54426594,126.95,126.89,391.84]
[1743231558286,9.54426594,126.93,126.89,391.84]
[1743231558682,7.8825,126.92,126.89,391.84]
[1743231558881,9.54426594,126.93,126.88,9.54426594]
[1743231559081,9.54426594,126.91,126.87,27.84]
[1743231559391,17.42746594,126.9,126.89,0.05424655]
[1743231562487,9.54426594,126.9,126.89,0.05424655]
[1743231562690,9.54426594,126.91,126.89,0.05424655]
[1743231562888,9.59537967,126.92,126.89,0.05424655]
[1743231563585,17.47737967,126.92,126.89,0.05424655]
[1743231565984,9.59537967,126.92,126.89,7.93794655]
[1743231568892,9.59537967,126.92,126.9,7.8831]
[1743231569085,0.05111373,126.92,126.89,0.05424655]
[1743231569285,0.05111373,126.92,126.89,27.91424655]
[1743231569691,0.05111373,126.92,126.91,7.8825]
[1743231569993,0.05111373,126.92,126.89,37.45851249]
[1743231570291,0.05111373,126.92,126.9,7.883]
[1743231578196,0.05111373,126.92,126.89,37.45851249]
[1743231578401,0.05111373,126.92,126.91,7.8825]
[1743231579196,0.05111373,126.92,126.89,45.34191249]
[1743231579403,0.05111373,126.92,126.89,35.79764655]
[1743231580809,7.93341373,126.92,126.89,35.79764655]
[1743231581605,0.05111373,126.92,126.91,7.8825]
[1743231581802,0.05111373,126.92,126.89,37.45851249]
[1743231582306,0.05111373,126.92,126.9,7.8829]
[1743231582705,0.05111373,126.92,126.89,37.45851249]
[1743231582906,7.93331373,126.92,126.89,45.34201249]
[1743231584300,7.93331373,126.92,126.89,9.59851249]
[1743231584607,7.93331373,126.92,126.89,27.89424655]
[1743231585005,7.93331373,126.92,126.89,35.77784655]
[1743231586711,0.05111373,126.92,126.9,7.883]
[1743231589511,0.05111373,126.92,126.91,7.8825]
[1743231590707,0.05111373,126.92,126.91,35.7225]
[1743231598319,0.05111373,126.92,126.91,45.26676594]
[1743231604317,0.05111373,126.92,126.91,37.38426594]
[1743231604922,0.05111373,126.92,126.91,45.26676594]
[1743231606427,7.93301373,126.92,126.91,27.84]
[1743231606814,9.59537967,126.92,126.89,0.05424655]
[1743231607015,9.54426594,126.9,126.89,0.05424655]
[1743231607419,9.54426594,126.91,126.89,0.05424655]
[1743231607718,9.59537967,126.92,126.89,0.05424655]
[1743231609123,17.47757967,126.92,126.89,0.05424655]
[1743231609724,7.8826,126.91,126.89,0.05424655]
[1743231610319,17.47757967,126.92,126.89,0.05424655]
[1743231610619,9.54426594,126.91,126.89,0.05424655]
[1743231614625,9.54426594,126.9,126.89,0.05424655]
[1743231614827,9.54426594,126.9,126.82,9.54426594]
[1743231615023,9.54426594,126.89,126.86,7.8851]
[1743231615223,9.54426594,126.9,126.86,27.84]
[1743231615725,17.42776594,126.9,126.86,35.7254]
[1743231615918,0.06001691,126.89,126.87,0.05655919]
[1743231616625,9.54426594,126.88,126.87,0.05655919]
[1743231617030,17.42866594,126.88,126.87,0.05655919]
[1743231619530,7.8844,126.88,126.87,0.05655919]
[1743231622431,0.06001691,126.89,126.87,0.05655919]
[1743231622933,0.06001691,126.89,126.87,7.94155919]
[1743231623832,0.06001691,126.89,126.88,7.8844]
[1743231624833,0.06001691,126.89,126.87,7.94135919]
[1743231625035,0.06001691,126.89,126.87,35.78135919]
[1743231625232,0.06001691,126.89,126.87,27.89655919]
[1743231626835,7.94381691,126.89,126.87,27.89655919]
[1743231627134,9.54426594,126.88,126.83,27.84]
[1743231627324,7.8869,126.84,126.83,27.84]
[1743231627735,7.8869,126.84,126.81,35.7284]
[1743231628234,9.54426594,126.84,126.79,269.54426594]
[1743231628439,9.5993143,126.84,126.81,27.89327448]
[1743231628736,7.8875,126.83,126.81,0.05327448]
[1743231630242,9.5993143,126.84,126.81,0.05327448]
[1743231630739,9.5993143,126.84,126.82,27.84]
[1743231632534,0.05504836,126.84,126.82,27.84]
[1743231633840,0.05504836,126.84,126.82,35.7278]
[1743231634043,9.54426594,126.83,126.81,0.05327448]
[1743231634244,9.5993143,126.84,126.81,0.05327448]
[1743231635639,17.4863143,126.84,126.81,0.05327448]
[1743231635835,9.5993143,126.84,126.81,7.94197448]
[1743231636033,0.05504836,126.84,126.82,37.38426594]
[1743231636433,0.05504836,126.84,126.83,7.8875]
[1743231636639,7.8843,126.89,126.82,39.57356594]
[1743231636839,7.8843,126.89,126.85,7.8862]
[1743231637039,7.8843,126.89,126.86,27.84]
[1743231637636,7.93795462,126.89,126.86,27.89728811]
[1743231638142,7.8846,126.88,126.86,27.89728811]
[1743231640549,7.885,126.87,126.86,27.89728811]
[1743231640741,7.885,126.87,126.86,0.05728811]
[1743231640943,7.8869,126.84,126.83,27.84]
[1743231641248,7.8869,126.84,126.81,27.84]
[1743231641249,9.54426594,126.84,126.81,27.84]
[1743231642046,9.59556642,126.84,126.81,27.89932936]
[1743231642549,7.8881,126.82,126.81,27.89932936]
[1743231644546,0.05130048,126.84,126.81,27.89932936]
[1743231645153,0.05130048,126.84,126.81,45.3319953]
[1743231645548,0.05130048,126.84,126.81,35.78772936]
[1743231646441,0.05130048,126.84,126.82,7.888]
[1743231646641,0.05130048,126.84,126.82,9.54426594]
[1743231647045,0.05130048,126.84,126.83,7.8875]
[1743231648054,0.05130048,126.84,126.82,17.43216594]
[1743231649757,0.05130048,126.84,126.83,7.8875]
[1743231650454,0.05130048,126.84,126.82,17.43206594]
[1743231652151,7.93850048,126.84,126.81,37.94912936]
[1743231652357,0.05130048,126.84,126.81,27.89932936]
[1743231652855,7.93850048,126.84,126.81,27.89932936]
[1743231653056,7.93850048,126.84,126.82,27.84]
[1743231653253,7.8875,126.83,126.82,27.84]
[1743231653455,7.8875,126.83,126.81,0.05932936]
[1743231653654,7.8875,126.83,126.82,27.84]
[1743231654056,7.93850048,126.84,126.82,27.84]
[1743231654257,0.05130048,126.84,126.82,27.84]
[1743231654857,0.05130048,126.84,126.83,27.84]
[1743231659063,7.93820048,126.84,126.83,27.84]
[1743231659857,7.8881,126.82,126.81,27.89932936]
[1743231661063,7.8881,126.82,126.81,0.05932936]
[1743231664660,17.43236594,126.82,126.81,0.05932936]
[1743231669873,7.8902,126.79,126.77,27.84]
[1743231670963,7.94115508,126.79,126.77,27.89564945]
[1743231671169,0.05095508,126.79,126.77,27.89564945]
[1743231671367,0.05095508,126.79,126.77,37.43991539]
[1743231671872,0.05095508,126.79,126.78,7.8906]
[1743231672774,9.54426594,126.84,126.77,37.43991539]
[1743231672974,9.54426594,126.87,126.82,9.54426594]
[1743231673172,2.0365,126.88,126.83,27.86]
[1743231673366,22.53457231,126.89,126.83,27.86]
[1743231673567,7.8854,126.87,126.84,7.8866]
[1743231674072,7.94534639,126.87,126.84,7.93684479]
[1743231674374,0.05994639,126.87,126.84,7.93684479]
[1743231675773,7.94504639,126.87,126.84,7.93684479]
[1743231678570,0.05994639,126.87,126.84,7.93684479]
[1743231678778,0.05994639,126.87,126.85,9.54426594]
[1743231678972,0.05994639,126.87,126.86,27.84]
[1743231681777,0.05994639,126.87,126.86,37.38426594]
[1743231682172,0.05994639,126.87,126.86,45.26996594]
[1743231683177,0.05994639,126.87,126.86,27.84]
[1743231683780,0.05994639,126.87,126.86,35.7257]
[1743231684680,0.05994639,126.87,126.86,27.84]
[1743231686585,0.05994639,126.87,126.86,45.26996594]
[1743231686784,9.54426594,126.94,126.86,37.38426594]
[1743231686987,9.54426594,126.94,126.89,9.54426594]
[1743231687283,9.54426594,126.94,126.9,27.84]
[1743231687983,0.05595802,126.93,126.91,0.05518644]
[1743231688179,9.54426594,126.92,126.91,0.05518644]
[1743231688378,17.42616594,126.92,126.91,0.05518644]
[1743231691983,17.48172396,126.93,126.91,0.05518644]
[1743231692481,7.93745802,126.93,126.91,0.05518644]
[1743231693387,7.8819,126.92,126.91,0.05518644]
[1743231694783,17.42616594,126.92,126.91,0.05518644]
[1743231698387,7.8819,126.92,126.91,0.05518644]
[1743231701192,17.48182396,126.93,126.91,0.05518644]
[1743231701393,9.60022396,126.93,126.91,0.05518644]
[1743231702091,7.8819,126.92,126.91,0.05518644]
[1743231702396,9.60022396,126.93,126.91,0.05518644]
[1743231702397,0.05595802,126.93,126.91,0.05518644]
[1743231702591,7.93785802,126.93,126.91,0.05518644]
[1743231702889,0.05595802,126.93,126.91,0.05518644]
[1743231703293,7.8819,126.92,126.91,0.05518644]
[1743231708300,7.885,126.88,126.85,9.54426594]
[1743231708502,7.885,126.88,126.84,27.82]
[1743231708800,9.54426594,126.89,126.83,9.54426594]
[1743231709004,9.54426594,126.86,126.81,9.54426594]
[1743231709198,9.54426594,126.86,126.82,27.82]
[1743231709398,7.93665561,126.85,126.82,27.87669387]
[1743231709592,7.93665561,126.85,126.82,0.05669387]
[1743231709799,7.93665561,126.85,126.82,27.87669387]
[1743231712702,7.8872,126.84,126.82,27.87669387]
[1743231713206,7.8874,126.84,126.82,27.89669387]
[1743231713506,0.05015561,126.85,126.83,9.54426594]
[1743231713809,7.93645561,126.85,126.83,9.54426594]
[1743231714910,7.8869,126.84,126.83,9.54426594]
[1743231715208,7.8869,126.84,126.82,37.44095981]
[1743231716113,7.93675561,126.85,126.82,45.32905981]
[1743231716711,0.05015561,126.85,126.83,7.8875]
[1743231717107,0.05015561,126.85,126.82,37.44095981]
[1743231718114,7.93645561,126.85,126.82,45.32875981]
[1743231719009,0.05015561,126.85,126.83,7.8872]
[1743231719409,0.05015561,126.85,126.82,37.44095981]
[1743231719715,7.93675561,126.85,126.82,45.32875981]
[1743231721112,0.05015561,126.85,126.82,37.44095981]
[1743231721313,0.05015561,126.85,126.82,0.05669387]
[1743231721520,9.59442155,126.85,126.82,0.05669387]
[1743231722016,7.8869,126.84,126.82,0.05669387]
[1743231722216,9.59442155,126.85,126.82,0.05669387]
[1743231722614,9.59442155,126.85,126.82,27.89669387]
[1743231723217,17.48102155,126.85,126.82,35.78449387]
[1743231723420,0.05015561,126.85,126.82,37.44095981]
[1743231724122,7.93645561,126.85,126.82,45.32875981]
[1743231726627,7.93645561,126.85,126.82,37.44095981]
[1743231728625,7.887,126.84,126.82,37.44095981]
[1743231731733,7.93675561,126.85,126.82,37.44095981]
[1743231731926,7.93675561,126.85,126.82,45.32895981]
[1743231733034,0.05015561,126.85,126.84,9.54426594]
[1743231733932,0.05015561,126.85,126.84,17.43116594]
[1743231734131,9.54426594,126.92,126.84,17.42426594]
[1743231734330,9.54426594,126.93,126.88,9.54426594]
[1743231734525,9.54426594,126.93,126.89,7.8835]
[1743231734526,7.8822,126.92,126.89,7.8835]
[1743231734730,7.8822,126.92,126.88,37.38426594]
[1743231734934,7.8822,126.92,126.89,9.54426594]
[1743231735328,7.93855784,126.92,126.89,9.60388637]
[1743231735935,7.8827,126.91,126.89,9.60388637]
[1743231736833,7.8827,126.91,126.89,0.05962043]
[1743231742434,7.8832,126.9,126.89,0.05962043]
[1743231742938,0.05635784,126.92,126.89,0.05962043]
[1743231743332,7.93855784,126.92,126.89,0.05962043]
[1743231744037,0.05635784,126.92,126.89,0.05962043]
[1743231744233,0.05635784,126.92,126.89,14.9961275]
[1743231744729,0.05635784,126.92,126.9,2.1533]
[1743231745028,0.05635784,126.92,126.91,35.7025]
[1743231745738,0.05635784,126.92,126.91,50.63900707]
[1743231746639,7.879,126.97,126.91,42.75650707]
[1743231747242,18.97450707,127.0,126.91,42.75650707]
[1743231747430,14.93650707,126.98,126.91,27.82]
[1743231747641,14.93650707,126.96,126.91,27.82]
[1743231747939,14.98932839,126.96,126.93,0.05681205]
[1743231748141,2.0301,126.95,126.93,0.05681205]
[1743231748344,7.8805,126.95,126.93,0.05681205]
[1743231750544,7.93252132,126.96,126.93,0.05681205]
[1743231750744,0.05282132,126.96,126.93,0.05681205]
[1743231751040,0.05282132,126.96,126.93,7.93781205]
[1743231751242,0.05282132,126.96,126.94,27.82]
[1743231751443,0.05282132,126.96,126.93,0.05681205]
[1743231751646,7.8805,126.95,126.93,0.05681205]
[1743231751944,0.05282132,126.96,126.93,0.05681205]
[1743231752246,7.8802,126.95,126.93,0.05681205]
[1743231757150,0.05282132,126.96,126.93,0.05681205]
[1743231757446,9.55507056,126.95,126.89,364.0]
[1743231757749,9.55507056,126.9,126.83,9.55507056]